bitfinex/quotes_ETHUSD_20251110
["timestamp","ask_amount","ask_price","bid_price","bid_amount"]
[1762762828325,0.27102561,3603.9,3603.8,4.35525711]
[1762762828739,0.27102561,3603.9,3603.8,8.22525711]
[1762762829337,0.53552561,3603.9,3603.8,7.73185711]
[1762762830139,0.53552561,3603.9,3603.8,4.95700834]
[1762762830442,0.53552561,3603.9,3603.8,6.64484877]
[1762762831985,0.53560454,3603.9,3603.8,6.64484877]
[1762762833044,0.53560454,3603.9,3603.8,3.87]
[1762762833481,0.53560454,3603.9,3603.8,6.64484877]
[1762762833976,0.27110454,3603.9,3603.8,6.64484877]
[1762762834279,0.27110454,3603.9,3603.8,8.57185453]
[1762762834456,0.27110454,3603.9,3603.8,4.70185453]
[1762762834656,0.27110454,3603.9,3603.8,4.24795453]
[1762762835573,0.27110454,3603.9,3603.8,3.75455453]
[1762762835771,0.27110454,3603.9,3603.8,4.13082258]
[1762762836652,0.53560454,3603.9,3603.8,1.35597381]
[1762762836856,0.53560454,3603.9,3603.8,3.15111682]
[1762762837257,0.27110454,3603.9,3603.8,3.64451682]
[1762762838462,0.27110454,3603.9,3603.8,4.09841682]
[1762762839255,0.27110454,3603.9,3603.8,3.64451682]
[1762762839493,0.27110454,3603.9,3603.8,4.09841682]
[1762762839656,0.27110454,3603.9,3603.8,4.01516111]
[1762762840483,0.27110454,3603.9,3603.8,7.88516111]
[1762762841075,0.73260454,3603.9,3603.8,7.02111682]
[1762762841288,0.92100454,3603.9,3603.8,6.64484877]
[1762762841468,0.27110454,3603.9,3603.8,6.64484877]
[1762762841863,0.54340454,3603.9,3603.8,6.64484877]
[1762762842167,0.27110454,3603.9,3603.8,7.13824877]
[1762762842384,0.27110454,3603.9,3603.8,8.12966722]
[1762762843476,0.27110454,3603.9,3603.8,7.13824877]
[1762762843677,0.27110454,3603.9,3603.8,6.64484877]
[1762762844579,0.27110454,3603.9,3603.8,3.26824877]
[1762762845975,0.27110454,3603.9,3603.8,3.72214877]
[1762762846480,0.27110454,3603.9,3603.8,3.26824877]
[1762762847371,0.27110454,3603.9,3603.8,2.77484877]
[1762762847876,0.27110454,3603.9,3603.8,3.86871722]
[1762762848071,0.27110454,3603.9,3603.8,3.26824877]
[1762762848272,0.27110454,3603.9,3603.8,3.72214877]
[1762762850696,1.17410454,3603.9,3603.7,2.77485925]
[1762762851006,0.25910454,3603.8,3603.7,2.77492577]
[1762762855318,0.25910454,3603.8,3603.7,3.23062577]
[1762762856319,0.25910454,3603.8,3603.7,3.91921219]
[1762762856613,0.25910454,3603.8,3603.7,4.41831219]
[1762762858301,0.25910454,3603.8,3603.7,3.91921219]
[1762762858809,0.25910454,3603.8,3603.6,3.87]
[1762762858810,0.97850454,3603.8,3603.6,3.87]
[1762762859007,0.4669,3603.8,3603.7,2.77492577]
[1762762859257,0.25892308,3603.8,3603.7,2.77492577]
[1762762859457,0.51482308,3603.8,3603.7,2.77492577]
[1762762860125,0.51482308,3603.8,3603.6,6.64498385]
[1762762860310,0.72372308,3603.7,3603.6,6.64500277]
[1762762861526,0.25892308,3603.7,3603.6,7.10070277]
[1762762861734,0.25892308,3603.7,3603.6,6.64500277]
[1762762862019,0.25892308,3603.7,3603.6,7.10070277]
[1762762863327,0.25892308,3603.7,3603.6,7.59980277]
[1762762863647,0.25892308,3603.7,3603.6,7.97562082]
[1762762864024,0.25892308,3603.7,3603.6,7.47652082]
[1762762864761,0.25892308,3603.7,3603.6,7.97562082]
[1762762864922,0.25892308,3603.7,3603.6,9.0507919]
[1762762865318,0.51482308,3603.7,3603.6,7.02082082]
[1762762865518,0.51482308,3603.7,3603.6,6.64500277]
[1762762866054,0.25892308,3603.7,3603.6,6.64500277]
[1762762866356,0.25892308,3603.7,3603.6,7.10070277]
[1762762866553,0.25892308,3603.7,3603.6,7.45243748]
[1762762866777,0.25892308,3603.7,3603.6,7.95153748]
[1762762867563,0.25892308,3603.7,3603.6,9.02430585]
[1762762867761,0.012,3603.9,3603.8,2.77484877]
[1762762867970,0.27083525,3603.9,3603.8,3.23054877]
[1762762868288,0.27083525,3603.9,3603.8,4.1427153]
[1762762868443,0.27083525,3603.9,3603.8,4.11496682]
[1762762868645,0.27083525,3603.9,3603.8,5.6259167]
[1762762870684,0.27083525,3603.9,3603.8,5.1268167]
[1762762871249,0.27083525,3603.9,3603.8,5.6259167]
[1762762871982,0.27083525,3603.9,3603.8,5.65366518]
[1762762873293,0.27083525,3603.9,3603.8,0.84101805]
[1762762873451,0.52673525,3603.9,3603.8,2.77484877]
[1762762877307,0.27083525,3603.9,3603.8,2.77484877]
[1762762878422,0.27083525,3603.9,3603.8,6.64484877]
[1762762879903,0.27083525,3603.9,3603.8,7.47943265]
[1762762880116,0.27083525,3603.9,3603.8,8.55488272]
[1762762880285,0.27083525,3603.9,3603.8,7.47943265]
[1762762882587,0.27083525,3603.9,3603.8,7.97853265]
[1762762886400,0.012,3603.9,3603.8,8.36423665]
[1762762886740,0.27099769,3603.9,3603.8,7.98535277]
[1762762886936,0.012,3603.9,3603.8,8.34085598]
[1762762887237,0.27099435,3603.9,3603.8,9.48947731]
[1762762887535,0.012,3603.9,3603.8,9.48947731]
[1762762890566,1e-08,3603.9,3603.8,9.8589221]
[1762762890760,0.002,3604.1,3604.0,3.18019878]
[1762762890961,0.002,3604.1,3604.0,7.54849878]
[1762762891169,0.002,3604.1,3604.0,10.38558921]
[1762762891350,0.002,3604.1,3604.0,11.38326024]
[1762762891747,0.002,3604.1,3604.0,10.38558921]
[1762762893353,0.002,3604.1,3604.0,14.6585837]
[1762762895376,0.002,3604.3,3604.2,3.18004481]
[1762762895672,0.002,3604.3,3604.2,10.65929048]
[1762762895968,0.002,3604.3,3604.2,11.13859048]
[1762762896181,0.002,3604.3,3604.2,15.00859048]
[1762762896341,0.002,3604.3,3604.2,13.51165993]
[1762762897372,0.01,3605.9,3604.8,6.45534381]
[1762762897582,0.4835,3605.5,3604.8,7.37553869]
[1762762897779,0.25869716,3605.4,3604.8,7.37553869]
[1762762897950,0.25869716,3605.3,3604.8,7.37553869]
[1762762898286,0.4835,3605.5,3604.8,7.85483869]
[1762762898597,0.25859268,3605.4,3604.8,7.85483869]
[1762762898748,0.25859268,3605.3,3604.8,7.85483869]
[1762762898952,0.4835,3605.5,3604.8,7.37553869]
[1762762899253,0.25859058,3605.4,3604.8,7.37553869]
[1762762899454,0.25859058,3605.3,3604.8,7.37553869]
[1762762899699,0.4835,3605.5,3604.8,7.37553869]
[1762762899882,0.25850206,3605.4,3604.8,7.37553869]
[1762762900184,0.4835,3605.5,3604.8,7.37553869]
[1762762900352,0.25843404,3605.4,3604.8,7.37553869]
[1762762900554,0.4835,3605.5,3604.8,7.37553869]
[1762762900776,0.25843446,3605.4,3604.8,7.37553869]
[1762762900954,0.4835,3605.5,3604.8,7.37553869]
[1762762901154,0.2584353,3605.4,3604.8,7.37553869]
[1762762901351,0.4835,3605.5,3604.8,7.37553869]
[1762762901596,0.25838168,3605.4,3604.8,7.37553869]
[1762762901885,0.4835,3605.5,3604.8,7.85483869]
[1762762902184,0.25836675,3605.4,3604.8,9.24531529]
[1762762902365,0.4835,3605.5,3604.8,9.24531529]
[1762762902552,0.25831828,3605.4,3604.8,9.24531529]
[1762762902880,0.25829921,3605.3,3604.8,8.76601529]
[1762762903045,0.4835,3605.5,3604.8,8.76601529]
[1762762903250,0.25823496,3605.4,3604.8,8.76601529]
[1762762903450,0.4835,3605.5,3604.8,8.76601529]
[1762762903677,1.269712,3605.9,3604.8,8.76601529]
[1762762903678,0.74171817,3605.4,3604.8,8.76601529]
[1762762903873,0.4835,3605.4,3604.8,8.76601529]
[1762762904479,0.4835,3605.4,3604.8,9.24531529]
[1762762904899,0.012,3604.9,3604.8,9.24531529]
[1762762905075,0.012,3604.9,3604.8,8.76601529]
[1762762906603,0.7094,3604.9,3604.8,4.58645048]
[1762762906802,0.5117,3604.9,3604.8,3.19597388]
[1762762907104,0.5117,3604.9,3604.2,0.34944479]
[1762762907105,0.5729,3604.9,3604.1,0.4835]
[1762762907270,0.4997,3604.2,3604.1,2.77461779]
[1762762907469,0.31942497,3604.8,3604.1,2.77461779]
[1762762907470,0.012,3604.9,3604.1,0.38184488]
[1762762907681,0.012,3604.9,3604.8,2.774079]
[1762762907867,0.27021564,3604.9,3604.8,2.774079]
[1762762908073,0.82691564,3604.9,3604.8,2.774079]
[1762762908406,0.34741564,3604.9,3604.8,2.774079]
[1762762908582,0.35141564,3604.9,3604.8,3.18609054]
[1762762909091,0.82691564,3604.9,3604.8,3.18609054]
[1762762909285,0.35141564,3604.9,3604.8,3.18609054]
[1762762909600,0.82691564,3604.9,3604.8,3.18609054]
[1762762910908,0.27021564,3604.9,3604.8,3.18609054]
[1762762911072,0.012,3604.9,3604.8,7.05788123]
[1762762911574,0.012,3604.9,3604.8,6.46185135]
[1762762911983,0.012,3604.9,3604.8,3.18609054]
[1762762912311,0.012,3604.9,3604.8,3.68439054]
[1762762912617,0.012,3604.9,3604.8,4.08989454]
[1762762914312,0.012,3604.9,3604.8,7.36565535]
[1762762914880,0.012,3604.9,3604.8,6.86735535]
[1762762915081,0.4805,3604.9,3604.8,6.86735535]
[1762762915283,0.4805,3604.9,3604.8,3.59159454]
[1762762915896,0.012,3604.9,3604.8,3.59159454]
[1762762916091,0.4767,3604.9,3604.8,3.18609054]
[1762762916499,0.012,3604.9,3604.8,3.18609054]
[1762762916821,0.012,3604.9,3604.8,3.65739054]
[1762762917197,0.012,3604.9,3604.8,6.93315135]
[1762762918897,0.012,3604.9,3604.8,3.65739054]
[1762762919282,0.012,3604.9,3604.8,4.68849982]
[1762762919759,0.0972,3604.9,3604.8,3.18609054]
[1762762920438,0.012,3604.9,3604.8,3.18609054]
[1762762921225,0.0972,3604.9,3604.8,3.18609054]
[1762762921626,0.82494894,3604.9,3604.8,3.18609054]
[1762762921863,0.35614894,3604.9,3604.8,3.18609054]
[1762762922433,0.27094894,3604.9,3604.8,3.18609054]
[1762762922627,0.012,3604.9,3604.8,4.15639844]
[1762762922828,0.012,3604.9,3604.8,4.62769844]
[1762762923053,0.0972,3604.9,3604.8,4.15639844]
[1762762923257,0.0972,3604.9,3604.8,3.18609054]
[1762762923653,0.35620154,3604.9,3604.8,3.18609054]
[1762762924032,0.82500154,3604.9,3604.8,3.18609054]
[1762762924231,0.35620154,3604.9,3604.8,3.18609054]
[1762762925261,0.27100154,3604.9,3604.8,3.18609054]
[1762762926463,0.36010154,3604.9,3604.8,3.18609054]
[1762762927072,0.82510154,3604.9,3604.8,0.41201154]
[1762762927372,0.82510154,3604.9,3604.6,0.001]
[1762762927540,0.73170154,3604.8,3604.6,0.001]
[1762762927742,0.73170154,3604.8,3604.6,2.77523292]
[1762762927743,0.34420154,3604.7,3604.6,2.77523292]
[1762762928074,0.81300154,3604.7,3604.6,2.77523292]
[1762762928670,0.81300154,3604.7,3604.6,0.001]
[1762762929477,0.81300154,3604.7,3604.6,2.77523292]
[1762762930761,0.81300154,3604.7,3604.6,0.001]
[1762762931274,0.81300154,3604.7,3604.6,2.77523292]
[1762762932364,0.81300154,3604.7,3604.6,0.001]
[1762762935781,4.8468695,3604.7,3604.6,0.001]
[1762762936144,4.95791876,3604.7,3604.6,0.001]
[1762762940182,8.23089897,3604.7,3604.6,0.001]
[1762762942590,0.3700508,3604.7,3604.6,0.4723]
[1762762942900,0.012,3604.9,3604.6,0.4723]
[1762762942901,0.012,3604.9,3604.8,3.179583]
[1762762943211,0.012,3604.9,3604.8,4.41736483]
[1762762943369,0.012,3604.9,3604.8,4.91286483]
[1762762949197,0.012,3604.9,3604.8,5.38916483]
[1762762951025,0.012,3604.9,3604.8,5.82240962]
[1762762951211,0.012,3604.9,3604.8,5.79466883]
[1762762953254,0.012,3604.9,3604.8,4.89366483]
[1762762953401,0.012,3604.9,3604.8,4.11254219]
[1762762954821,0.012,3604.9,3604.8,4.14028298]
[1762762955016,0.012,3604.9,3604.8,4.62028298]
[1762762955532,0.012,3604.9,3604.8,4.59254219]
[1762762956328,0.012,3604.9,3604.8,5.65661127]
[1762762961563,0.012,3604.9,3604.8,5.17661127]
[1762762961943,0.012,3604.9,3604.8,5.65661127]
[1762762966340,0.012,3604.9,3604.8,9.52661127]
[1762762967575,0.012,3604.9,3604.8,9.04661127]
[1762762967968,0.012,3604.9,3604.8,9.52661127]
[1762762972267,0.27143273,3604.9,3604.8,9.52661127]
[1762762973360,0.012,3604.9,3604.8,10.92669207]
[1762762973760,0.012,3604.9,3604.8,10.44669207]
[1762762973957,0.27144001,3604.9,3604.8,9.45211527]
[1762762974371,0.27144001,3604.9,3604.8,8.97581527]
[1762762975975,0.27144001,3604.9,3604.8,9.45621527]
[1762762979004,0.27144001,3604.9,3604.8,8.97581527]
[1762762979385,0.002,3605.3,3605.2,3.17927521]
[1762762979586,0.002,3605.3,3605.2,7.82345117]
[1762762979796,0.0886,3605.3,3605.2,4.09107096]
[1762762983445,0.002,3605.3,3605.2,4.09107096]
[1762762984800,0.0886,3605.3,3605.2,4.09107096]
[1762762985735,0.002,3605.3,3605.2,4.55047096]
[1762762986239,0.002,3605.3,3604.7,0.11100858]
[1762762986240,2.86619428,3605.3,3604.7,0.11100858]
[1762762986452,2.86619428,3605.3,3604.5,0.99853265]
[1762762986453,1.25629528,3604.5,3604.3,0.001]
[1762762986599,3.55705588,3604.8,3604.3,0.001]
[1762762986600,0.1941,3604.8,3604.3,0.001]
[1762762986800,0.1941,3605.1,3604.4,1.07328399]
[1762762987210,0.6744,3605.1,3604.7,2.77409482]
[1762762987498,0.6744,3605.1,3604.8,1.07328399]
[1762762987704,0.4803,3605.0,3604.3,0.001]
[1762762987948,0.002,3605.3,3604.6,3.27265588]
[1762762988237,0.002,3605.3,3605.2,2.77377121]
[1762762988450,0.002,3605.3,3605.2,0.41112867]
[1762762988648,0.5561,3605.3,3605.2,0.41112867]
[1762762991268,0.5561,3605.3,3604.6,0.001]
[1762762991433,0.25917254,3605.2,3604.8,2.77401921]
[1762762991633,0.5561,3605.3,3604.9,2.7739565]
[1762762991634,0.25917254,3605.1,3604.9,2.7739565]
[1762762991830,0.25917254,3605.0,3604.9,2.7739565]
[1762762992080,0.25917254,3605.0,3604.9,3.65613237]
[1762762992226,0.25917254,3605.0,3604.9,4.04565741]
[1762762992952,0.25917254,3605.0,3604.9,4.50505741]
[1762762994970,0.25917254,3605.0,3604.9,4.04565741]
[1762762995579,0.25917254,3605.0,3604.9,4.50505741]
[1762762997329,0.33697254,3605.0,3604.9,0.38952504]
[1762762997530,0.25917254,3605.0,3604.9,3.16352709]
[1762762997861,0.002,3605.3,3605.0,2.77386859]
[1762762998065,0.25917641,3605.2,3605.1,2.77384815]
[1762762998424,0.33697641,3605.2,3605.1,2.77384815]
[1762763001078,0.81327641,3605.2,3605.0,2.7739149]
[1762763001376,0.25917641,3605.1,3605.0,2.7739149]
[1762763001534,0.33697641,3605.1,3605.0,2.7739251]
[1762763001932,0.33697641,3605.1,3605.0,3.16345014]
[1762763002237,0.15783984,3605.1,3605.0,11.1125659]
[1762763003037,0.002,3605.3,3605.2,3.17927521]
[1762763003239,0.002,3605.3,3605.2,9.35777146]
[1762763003455,0.002,3605.3,3605.2,9.83817146]
[1762763007471,0.002,3605.3,3605.2,13.11082734]
[1762763007644,0.002,3605.7,3605.2,13.11082734]
[1762763007645,0.002,3605.7,3605.6,3.1789675]
[1762763007845,0.002,3605.7,3605.6,7.31802342]
[1762763008047,0.002,3605.7,3605.6,9.69352588]
[1762763008255,0.002,3605.7,3605.6,10.68951761]
[1762763009382,0.002,3605.7,3605.6,9.69352588]
[1762763014712,1e-08,3605.9,3605.8,3.65471366]
[1762763015007,0.002,3606.1,3606.0,3.17865985]
[1762763015214,0.002,3606.1,3606.0,9.40106503]
[1762763020011,0.002,3606.1,3606.0,12.67372091]
[1762763021523,0.002,3606.1,3606.0,9.40106503]
[1762763021822,0.002,3606.1,3606.0,7.79793244]
[1762763025727,0.002,3606.1,3606.0,11.66793244]
[1762763032147,0.002,3606.1,3606.0,12.66175875]
[1762763034008,0.002,3606.1,3606.0,13.03866736]
[1762763034204,0.002,3606.1,3606.0,12.04484105]
[1762763034433,0.002,3606.1,3606.0,13.6762506]
[1762763034846,0.4639,3606.1,3606.0,10.44230187]
[1762763035038,0.002,3606.1,3606.0,13.71495775]
[1762763035244,0.002,3606.1,3606.0,13.2018506]
[1762763036307,0.002,3606.1,3606.0,16.96860648]
[1762763036709,0.002,3606.1,3606.0,13.6959506]
[1762763037148,0.002,3606.1,3606.0,15.19089539]
[1762763038617,0.002,3606.1,3606.0,14.69679539]
[1762763040138,0.002,3606.1,3606.0,13.2018506]
[1762763040748,0.002,3606.1,3606.0,14.69722533]
[1762763040945,0.002,3606.1,3606.0,14.69469209]
[1762763041150,0.002,3606.1,3606.0,13.19931736]
[1762763043446,0.002,3606.5,3606.4,6.4484749]
[1762763043628,0.26135415,3606.5,3606.4,11.70734351]
[1762763043836,0.32305415,3606.5,3606.4,11.70734351]
[1762763044219,0.32305415,3606.5,3606.4,10.70972494]
[1762763044953,0.81285415,3606.5,3606.4,10.70972494]
[1762763045155,0.32305415,3606.5,3606.4,6.64284826]
[1762763045456,0.81285415,3606.5,3606.4,2.77284826]
[1762763046451,0.81285415,3606.5,3606.4,3.1409125]
[1762763047041,0.81285415,3606.5,3606.4,7.40929265]
[1762763047717,0.81285415,3606.5,3606.4,6.41103514]
[1762763051083,0.32305415,3606.5,3606.4,3.1409125]
[1762763051678,0.81284396,3606.5,3606.4,3.1409125]
[1762763052264,0.81284396,3606.5,3606.4,2.77284826]
[1762763052474,0.81284396,3606.5,3606.4,3.1409125]
[1762763053290,0.26134396,3606.5,3606.4,6.49936208]
[1762763053463,0.002,3606.5,3606.4,6.4716336]
[1762763054450,0.002,3606.5,3606.4,5.9898336]
[1762763055356,0.0637,3606.5,3606.4,5.9898336]
[1762763055883,0.002,3606.5,3606.4,5.9898336]
[1762763056188,0.002,3606.5,3606.4,4.99157609]
[1762763057052,0.002,3606.5,3606.4,5.47337609]
[1762763058626,0.0637,3606.5,3606.4,5.98929262]
[1762763058770,0.5535,3606.5,3606.4,8.2926154]
[1762763059300,0.0637,3606.5,3606.4,8.2926154]
[1762763059499,0.0637,3606.5,3606.4,5.02249276]
[1762763060302,0.002,3606.5,3606.4,5.50429276]
[1762763062334,0.002,3606.5,3606.4,5.02249276]
[1762763062513,0.0637,3606.5,3606.4,5.02249276]
[1762763064729,0.002,3606.5,3606.4,5.02249276]
[1762763068936,0.002,3606.5,3606.4,8.89249276]
[1762763070647,0.002,3606.5,3606.4,9.37999276]
[1762763072537,0.002,3606.5,3606.4,8.89249276]
[1762763073235,0.002,3606.5,3606.4,9.37999276]
[1762763077661,0.002,3606.5,3606.4,9.83129276]
[1762763078523,0.0726,3606.5,3606.4,8.89249276]
[1762763079226,0.0767,3606.5,3606.4,8.89249276]
[1762763079453,0.002,3606.5,3606.4,9.37999276]
[1762763080032,0.002,3606.5,3606.4,8.89249276]
[1762763080233,0.0726,3606.5,3606.4,8.89249276]
[1762763080562,1e-08,3606.6,3606.4,5.50999276]
[1762763080760,1e-08,3606.6,3606.5,5.87689877]
[1762763080959,1e-08,3606.6,3606.5,7.34546648]
[1762763084323,1e-08,3606.6,3606.5,7.34566852]
[1762763087169,1e-08,3606.6,3606.5,6.89436852]
[1762763087472,0.55160001,3606.6,3606.5,5.5025495]
[1762763087637,0.55160001,3606.6,3606.5,4.91037106]
[1762763087833,0.07060001,3606.6,3606.5,4.91037106]
[1762763089254,0.55160001,3606.6,3606.5,3.60542296]
[1762763089655,0.07060001,3606.6,3606.5,3.60542296]
[1762763092343,0.07060001,3606.6,3606.5,7.47542296]
[1762763094045,1e-08,3606.6,3606.5,7.47542296]
[1762763097094,1e-08,3606.6,3606.5,7.47642296]
[1762763098360,1e-08,3606.6,3606.5,10.06677797]
[1762763098560,1e-08,3606.6,3606.5,9.58067797]
[1762763098795,1e-08,3606.6,3606.5,11.56327543]
[1762763099193,1e-08,3606.6,3606.5,11.67421966]
[1762763099586,1e-08,3606.6,3606.5,11.18811966]
[1762763099921,1e-08,3606.6,3606.5,9.6916222]
[1762763100392,1e-08,3606.6,3606.5,11.67421966]
[1762763100895,1e-08,3606.6,3606.5,14.94305499]
[1762763106489,1e-08,3606.6,3606.5,14.45695499]
[1762763106694,1e-08,3606.6,3606.5,14.94305499]
[1762763108280,0.06310001,3606.6,3606.5,10.72851966]
[1762763108495,0.06310001,3606.6,3606.5,10.74525829]
[1762763109016,1e-08,3606.6,3606.5,12.24175575]
[1762763109423,1e-08,3606.6,3606.5,13.18745575]
[1762763109586,1e-08,3606.6,3606.5,12.70135575]
[1762763111824,1e-08,3606.6,3606.5,12.24175575]
[1762763111989,0.06730001,3606.6,3606.5,10.74525829]
[1762763112189,0.55150001,3606.6,3606.5,10.31811071]
[1762763112430,0.32666843,3606.6,3606.5,4.8689088]
[1762763112629,0.81086843,3606.6,3606.5,6.64377138]
[1762763112836,0.81086843,3606.6,3606.5,7.04354396]
[1762763113746,0.25936843,3606.6,3606.5,7.04354396]
[1762763113950,1e-08,3606.6,3606.5,7.90864796]
[1762763114145,1e-08,3606.6,3606.5,10.05750143]
[1762763114514,1e-08,3606.6,3606.5,9.59790143]
[1762763118550,1e-08,3606.6,3606.5,13.32633676]
[1762763118758,1e-08,3606.6,3606.5,10.54360143]
[1762763118961,1e-08,3606.6,3606.5,12.15091748]
[1762763121440,0.012,3606.9,3606.8,3.17804475]
[1762763121738,0.012,3606.9,3606.8,9.68720281]
[1762763121945,0.012,3606.9,3606.8,10.31816171]
[1762763122149,0.012,3606.9,3606.8,13.58699704]
[1762763122347,0.012,3606.9,3606.8,12.58948872]
[1762763122548,0.012,3606.9,3606.8,13.18652895]
[1762763122753,0.012,3606.9,3606.8,12.70042895]
[1762763122940,0.012,3606.9,3606.8,9.43159362]
[1762763123143,0.012,3606.9,3606.8,12.70042895]
[1762763123350,0.012,3606.9,3606.8,13.18652895]
[1762763123554,0.012,3606.9,3606.8,9.43159362]
[1762763124041,0.012,3606.9,3606.8,12.70042895]
[1762763124248,0.012,3606.9,3606.8,13.18652895]
[1762763124664,0.012,3606.9,3606.8,17.05652895]
[1762763125457,0.012,3606.9,3606.8,16.57042895]
[1762763126962,0.012,3606.9,3606.8,17.03302895]
[1762763127364,0.1925,3608.1,3607.8,2.77177227]
[1762763127542,0.26924193,3607.9,3607.8,9.73679884]
[1762763127747,0.82594193,3607.9,3607.8,9.73679884]
[1762763127948,0.82594193,3607.9,3607.8,7.13726351]
[1762763128154,0.35464193,3607.9,3607.8,7.13726351]
[1762763128484,0.0954,3607.9,3607.8,7.13726351]
[1762763129049,0.01,3607.9,3607.8,7.13726351]
[1762763129543,0.01,3607.9,3607.8,6.46796351]
[1762763130146,0.1008,3607.9,3607.8,6.46796351]
[1762763131796,0.1028,3607.9,3607.8,6.46796351]
[1762763132647,0.012,3607.9,3607.8,6.46796351]
[1762763134579,0.012,3607.9,3607.8,6.92476351]
[1762763134889,0.012,3607.9,3607.8,7.96080583]
[1762763135261,0.012,3607.9,3607.8,7.97920583]
[1762763137984,0.0989,3607.9,3607.8,7.97920583]
[1762763138283,0.7627,3607.9,3607.8,7.50400583]
[1762763138487,0.7627,3607.9,3607.8,7.69650583]
[1762763140986,0.7627,3607.9,3607.8,3.39162818]
[1762763141184,0.7627,3607.9,3607.8,3.19912818]
[1762763142392,0.2914,3607.9,3607.8,3.19912818]
[1762763142593,0.012,3607.9,3607.8,3.19912818]
[1762763142892,0.7657,3607.9,3607.8,3.19912818]
[1762763145374,0.6997,3607.9,3607.8,3.19912818]
[1762763146010,0.012,3607.9,3607.8,4.5293605]
[1762763146494,0.1014,3607.9,3607.8,4.5293605]
[1762763146807,0.1014,3607.9,3607.8,3.19912818]
[1762763147164,0.7627,3607.9,3607.8,3.19912818]
[1762763148113,0.7627,3607.9,3607.8,7.06912818]
[1762763148291,0.2904,3607.9,3607.8,7.06912818]
[1762763149177,0.1014,3607.9,3607.8,7.06912818]
[1762763149414,0.012,3607.9,3607.8,8.3993605]
[1762763149615,0.012,3607.9,3607.8,8.8517605]
[1762763149793,0.012,3607.9,3607.8,8.3993605]
[1762763152183,0.7657,3607.9,3607.8,7.06912818]
[1762763152583,0.2795,3607.9,3607.8,7.06912818]
[1762763152784,0.0916,3607.9,3607.8,7.06912818]
[1762763155391,0.27074427,3607.9,3607.8,7.06912818]
[1762763156001,0.27074427,3607.9,3607.8,7.58830759]
[1762763156207,0.35324427,3607.9,3607.8,7.58830759]
[1762763156928,0.0945,3607.9,3607.8,7.58830759]
[1762763157096,0.35336108,3607.9,3607.8,7.58830759]
[1762763157608,0.27086108,3607.9,3607.8,9.07167438]
[1762763158906,0.27086108,3607.9,3607.8,8.58547438]
[1762763159232,0.27086108,3607.9,3607.8,7.58830759]
[1762763159532,0.38556108,3607.9,3607.8,7.06912818]
[1762763160331,0.38556108,3607.9,3607.8,10.33796351]
[1762763160540,0.38556108,3607.9,3607.8,6.64177227]
[1762763160541,1.02186108,3607.9,3607.8,6.64177227]
[1762763160696,0.38556108,3607.9,3607.8,6.64177227]
[1762763161096,0.38556108,3607.9,3607.8,7.00187891]
[1762763161497,0.27086108,3607.9,3607.8,7.48807891]
[1762763161722,0.27086108,3607.9,3607.8,8.40585298]
[1762763161920,0.38226108,3607.9,3607.8,8.40585298]
[1762763162816,0.38226108,3607.9,3607.8,7.80468831]
[1762763162817,1.02186108,3607.9,3607.8,7.80468831]
[1762763163123,1.02186108,3607.9,3607.8,3.13187891]
[1762763163328,0.57456108,3607.9,3607.8,2.77177227]
[1762763163506,1.02186108,3607.9,3607.8,2.77177227]
[1762763164957,1.02186108,3607.9,3607.6,2.77192593]
[1762763165145,0.1114,3607.7,3607.6,2.77185213]
[1762763165335,0.37026108,3607.7,3607.6,2.77185213]
[1762763165934,0.81756108,3607.7,3607.6,2.77185213]
[1762763166958,0.37026108,3607.7,3607.6,2.77185213]
[1762763167159,0.37026108,3607.7,3607.6,4.14562579]
[1762763167363,0.37026108,3607.7,3607.6,3.16462544]
[1762763167858,0.81756108,3607.7,3607.6,3.16462544]
[1762763168462,0.37026108,3607.7,3607.6,3.16462544]
[1762763169365,0.25886108,3607.7,3607.6,3.16462544]
[1762763169859,0.37026108,3607.7,3607.6,3.16462544]
[1762763170548,0.81756108,3607.7,3607.6,3.16462544]
[1762763170744,0.37026108,3607.7,3607.6,3.16462544]
[1762763172122,0.25886108,3607.7,3607.6,3.65082544]
[1762763172330,0.25886108,3607.7,3607.6,4.71972312]
[1762763172860,0.012,3607.9,3607.8,2.77177227]
[1762763173164,0.27071117,3607.9,3607.8,6.94763333]
[1762763173467,0.27071117,3607.9,3607.8,7.43813333]
[1762763173631,0.27071117,3607.9,3607.8,8.66572139]
[1762763174347,0.012,3607.9,3607.8,8.66572139]
[1762763175555,0.38205181,3607.9,3607.8,4.42105031]
[1762763176049,0.1234,3607.9,3607.8,4.42105031]
[1762763176257,0.38203116,3607.9,3607.8,4.42105031]
[1762763176551,0.27063116,3607.9,3607.8,5.39775031]
[1762763177274,0.27063116,3607.9,3607.8,4.90725031]
[1762763181966,0.27063116,3607.9,3607.8,5.39775031]
[1762763182180,0.27063116,3607.9,3607.8,4.90725031]
[1762763183280,1e-08,3607.9,3607.8,6.80025172]
[1762763183576,0.01,3608.9,3607.8,6.80025172]
[1762763183577,0.01,3608.9,3608.6,3.17666178]
[1762763183773,0.01,3608.9,3608.6,8.87283601]
[1762763183982,0.01,3608.9,3608.6,9.36333601]
[1762763184279,0.01,3608.9,3608.6,8.06082284]
[1762763184780,0.01,3608.9,3608.6,9.55782284]
[1762763185085,0.01,3608.9,3608.6,7.06726884]
[1762763185246,0.4643,3608.7,3608.6,4.98773609]
[1762763185567,0.4643,3608.7,3608.6,3.21834776]
[1762763186147,0.4621,3608.7,3608.6,3.21834776]
[1762763186765,0.002,3608.7,3608.6,4.21155933]
[1762763190498,0.002,3608.7,3608.6,3.68844776]
[1762763190681,0.002,3608.7,3608.6,7.23184122]
[1762763190880,0.002,3608.7,3608.6,7.70194122]
[1762763191410,0.01,3608.9,3608.8,3.17650821]
[1762763191710,0.01,3608.9,3608.8,4.06408985]
[1762763192009,0.01,3608.9,3608.8,4.55948985]
[1762763192217,0.01,3608.9,3608.8,5.82939714]
[1762763192590,0.01,3608.9,3608.8,6.82999714]
[1762763192795,0.01,3608.9,3608.8,10.59336822]
[1762763193320,0.01,3608.9,3608.8,9.09736822]
[1762763193620,0.01,3608.9,3608.8,10.59336822]
[1762763197122,0.01,3608.9,3608.8,10.95490422]
[1762763202162,0.012,3608.9,3608.8,10.95490422]
[1762763202561,0.002,3609.3,3609.2,3.1762011]
[1762763202766,0.002,3609.3,3609.2,6.47187915]
[1762763202949,0.01,3609.9,3609.8,6.44371165]